[Event "Bruges Masters 2019"]
[Site "Bruges"]
[Date "2019.08.11"]
[Round "2.3"]
[White "De Waele, Warre"]
[Black "Goudriaan, Etienne"]
[Result "1/2-1/2"]
[ECO "E04"]
[WhiteElo "2225"]
[BlackElo "2341"]
[Annotator "NA"]
[PlyCount "114"]
[EventDate "2019.08.11"]
[EventType "swiss"]
[EventCountry "BEL"]
[SourceTitle "playchess.com"]
[Source "ChessBase"]
[SourceQuality "1"]
[TimeControl "5400+30"]

1. d4 {[%emt 0:00:00]} Nf6 {[%emt 0:00:00]} 2. c4 {[%emt 0:00:00]} e6 {[%emt 0:00:00]} 3. Nf3 {[%emt 0:00:17]} d5 {[%emt 0:00:00]} 4. g3 {[%emt 0:00:41]} dxc4 {[%emt 0:00:19]} 5. Bg2 {[%emt 0:00:06]} a6 {[%emt 0:00:07]} 6. O-O {[%emt 0:00:24]} Nc6 {[%emt 0:00:04]} 7. e3 {[%emt 0:00:08]} Rb8 {[%emt 0:00:09]} 8. Nfd2 {[%emt 0:03:39]} e5 {[%emt 0:00:53]} 9. Bxc6+ {[%emt 0:00:06]} bxc6 {[%emt 0:00:03]} 10. dxe5 {[%emt 0:00:09]} Ng4 {[%emt 0:00:11]} 11. Nxc4 {[%emt 0:00:09]} Be6 {[%emt 0:00:09]} 12. Nbd2 {[%emt 0:02:56]} h5 {[%emt 0:01:20]} 13. f3 {[%emt 0:04:09]} Rb4 {[%emt 0:01:18]} 14. fxg4 {[%emt 0:05:58]} Bxc4 {[%emt 0:00:06]} 15. Nxc4 {[%emt 0:00:12]} Qxd1 {[%emt 0:00:12]} 16. Rxd1 {[%emt 0:00:08]} Rxc4 {[%emt 0:00:22]} 17. gxh5 {[%emt 0:04:00]} Rxh5 {[%emt 0:02:10]} 18. b3 {[%emt 0:10:59]} Rc2 {[%emt 0:01:40]} 19. Rd2 {[%emt 0:00:23]} Rxd2 {[%emt 0:00:41]} 20. Bxd2 {[%emt 0:00:06]} Rxe5 {[%emt 0:00:38]} 21. Rc1 {[%emt 0:00:58]} Kd7 {[%emt 0:02:29]} 22. Kf2 {[%emt 0:01:10]} Rh5 {[%emt 0:03:43]} 23. Kg2 {[%emt 0:00:30]} Bc5 {[%emt 0:06:29]} 24. e4 {[%emt 0:06:25]} Bb6 {[%emt 0:07:50]} 25. g4 {[%emt 0:03:43]} Re5 {[%emt 0:01:11]} 26. Kf3 {[%emt 0:00:18]} Re6 {[%emt 0:06:21]} 27. Bc3 {[%emt 0:01:30]} Rh6 {[%emt 0:08:40]} 28. Rd1+ {[%emt 0:00:33]} Ke6 {[%emt 0:01:16]} 29. Kg3 {[%emt 0:02:41]} g5 {[%emt 0:02:59]} 30. Rd8 {[%emt 0:07:09]} Be3 {[%emt 0:01:38]} 31. h3 {[%emt 0:00:27]} Bf4+ {[%emt 0:00:32]} 32. Kg2 {[%emt 0:00:04]} Ke7 {[%emt 0:01:17]} 33. Rd4 {[%emt 0:07:49]} c5 {[%emt 0:12:54]} 34. Rd5 {[%emt 0:02:32]} Re6 {[%emt 0:04:53]} 35. e5 {[%emt 0:03:05]} Rc6 {[%emt 0:00:39]} 36. Kf3 {[%emt 0:03:27]} Rh6 {[%emt 0:02:32]} 37. Rxc5 {[%emt 0:03:47]} Rxh3+ {[%emt 0:00:07]} 38. Ke4 {[%emt 0:00:15]} Kd7 {[%emt 0:00:20]} 39. Ba5 {[%emt 0:03:04]} c6 {[%emt 0:01:18]} 40. Rc3 {[%emt 0:01:58]} Rh2 {[%emt 0:05:56]} 41. Rd3+ {[%emt 0:00:23]} Ke8 {[%emt 0:00:17]} 42. Bc7 {[%emt 0:07:34]} Rxa2 {[%emt 0:01:57]} 43. Rd8+ {[%emt 0:01:43]} Ke7 {[%emt 0:00:11]} 44. Ra8 {[%emt 0:00:15]} Kd7 {[%emt 0:07:11]} 45. Bd6 {[%emt 0:00:52]} f6 {[%emt 0:00:13]} 46. Ra7+ {[%emt 0:00:59]} Kc8 {[%emt 0:01:43]} 47. Rc7+ {[%emt 0:00:48]} Kd8 {[%emt 0:00:06]} 48. Rxc6 {[%emt 0:01:55]} fxe5 {[%emt 0:01:22]} 49. Kd5 {[%emt 0:00:29]} e4 {[%emt 0:03:46]} 50. Bxf4 {[%emt 0:01:31]} gxf4 {[%emt 0:00:20]} 51. Kxe4 {[%emt 0:00:06]} Ra3 {[%emt 0:01:00]} 52. Rb6 {[%emt 0:00:34]} a5 {[%emt 0:02:06]} 53. Kxf4 {[%emt 0:00:46]} a4 {[%emt 0:00:03]} 54. bxa4 {[%emt 0:00:27]} Rxa4+ {[%emt 0:00:03]} 55. Kg5 {[%emt 0:00:13]} Ke7 {[%emt 0:00:09]} 56. Rf6 {[%emt 0:00:35]} Rxg4+ {[%emt 0:00:14]} 57. Kxg4 {[%emt 0:00:03]} Kxf6 {[%emt 0:14:23]} 1/2-1/2

[Event "Bruges Masters 2019"]
[Site "Bruges"]
[Date "2019.08.11"]
[Round "2.4"]
[White "Bekker, Stefan"]
[Black "Van Malder, Dries"]
[Result "0-1"]
[ECO "A05"]
[WhiteElo "2272"]
[BlackElo "2178"]
[Annotator "NA"]
[PlyCount "90"]
[EventDate "2019.08.11"]
[EventType "swiss"]
[EventCountry "BEL"]
[SourceTitle "playchess.com"]
[Source "ChessBase"]
[SourceQuality "1"]
[TimeControl "5400+30"]

1. Nf3 {[%emt 0:00:00]} Nf6 {[%emt 0:00:00]} 2. g3 {[%emt 0:00:00]} b5 {[%emt 0:00:00]} 3. c3 {[%emt 0:00:41]} c5 {[%emt 0:05:30]} 4. a4 {[%emt 0:02:32]} b4 {[%emt 0:01:09]} 5. Bg2 {[%emt 0:00:27]} Bb7 {[%emt 0:00:35]} 6. O-O {[%emt 0:05:18]} e6 {[%emt 0:00:33]} 7. cxb4 {[%emt 0:00:46]} cxb4 {[%emt 0:00:10]} 8. d4 {[%emt 0:00:32]} d5 {[%emt 0:02:38]} 9. Bg5 {[%emt 0:00:36]} Nbd7 {[%emt 0:01:38]} 10. Nbd2 {[%emt 0:00:59]} Be7 {[%emt 0:02:18]} 11. a5 {[%emt 0:08:30]} O-O {[%emt 0:02:51]} 12. Nb3 {[%emt 0:06:42]} Ba6 {[%emt 0:04:02]} 13. Bxf6 {[%emt 0:00:59]} Nxf6 {[%emt 0:00:58]} 14. Ne5 {[%emt 0:00:19]} Rc8 {[%emt 0:00:46]} 15. Qd2 {[%emt 0:00:23]} Nd7 {[%emt 0:04:47]} 16. Nxd7 {[%emt 0:00:46]} Qxd7 {[%emt 0:00:08]} 17. Rfc1 {[%emt 0:01:48]} Bc4 {[%emt 0:03:22]} 18. Qd1 {[%emt 0:00:34]} Qb5 {[%emt 0:03:20]} 19. e3 {[%emt 0:03:49]} Rc6 {[%emt 0:05:17]} 20. Nd2 {[%emt 0:02:29]} Be2 {[%emt 0:02:44]} 21. Bf1 {[%emt 0:03:49]} Bxf1 {[%emt 0:02:47]} 22. Nxf1 {[%emt 0:05:22]} Rfc8 {[%emt 0:00:38]} 23. Rxc6 {[%emt 0:00:07]} Qxc6 {[%emt 0:01:04]} 24. a6 {[%emt 0:07:07]} Qc2 {[%emt 0:05:34]} 25. Qxc2 {[%emt 0:03:18]} Rxc2 {[%emt 0:00:16]} 26. b3 {[%emt 0:00:10]} Kf8 {[%emt 0:06:12]} 27. Ra5 {[%emt 0:00:16]} Rc6 {[%emt 0:01:13]} 28. Nd2 {[%emt 0:02:20]} Ke8 {[%emt 0:01:47]} 29. Nf3 {[%emt 0:02:19]} f6 {[%emt 0:00:39]} 30. Ne1 {[%emt 0:02:36]} Kd7 {[%emt 0:03:05]} 31. Kf1 {[%emt 0:01:36]} Kc7 {[%emt 0:00:51]} 32. Ke2 {[%emt 0:01:02]} Kb6 {[%emt 0:00:20]} 33. Ra2 {[%emt 0:00:35]} Kb5 {[%emt 0:00:11]} 34. Nd3 {[%emt 0:00:19]} Bd6 {[%emt 0:01:17]} 35. Kd2 {[%emt 0:01:17]} Rxa6 {[%emt 0:00:12]} 36. Rxa6 {[%emt 0:00:05]} Kxa6 {[%emt 0:00:07]} 37. f3 {[%emt 0:06:35]} Kb5 {[%emt 0:01:18]} 38. Nb2 {[%emt 0:00:43]} e5 {[%emt 0:01:38]} 39. dxe5 {[%emt 0:01:14]} Bxe5 {[%emt 0:00:39]} 40. Nd3 {[%emt 0:00:34]} a5 {[%emt 0:00:47]} 41. f4 {[%emt 0:00:05]} Bc3+ {[%emt 0:02:33]} 42. Kc2 {[%emt 0:00:06]} f5 {[%emt 0:07:40]} 43. h3 {[%emt 0:07:58]} h5 {[%emt 0:01:28]} 44. Ne5 {[%emt 0:13:17]} Bxe5 {[%emt 0:08:18]} 45. fxe5 {[%emt 0:00:18]} Kc6 {[%emt 0:00:05]} 0-1

[Event "Bruges Masters 2019"]
[Site "Bruges"]
[Date "2019.08.11"]
[Round "2.5"]
[White "Offringa, Joost"]
[Black "Dauw, Sterre"]
[Result "1/2-1/2"]
[ECO "A30"]
[WhiteElo "2291"]
[BlackElo "2148"]
[Annotator "NA"]
[PlyCount "112"]
[EventDate "2019.08.11"]
[EventType "swiss"]
[EventCountry "BEL"]
[SourceTitle "playchess.com"]
[Source "ChessBase"]
[SourceQuality "1"]
[TimeControl "5400+30"]

1. c4 {[%emt 0:00:00]} Nf6 {[%emt 0:11:10]} 2. Nf3 {[%emt 0:00:00]} c5 {[%emt 0:00:08]} 3. g3 {[%emt 0:00:00]} d5 {[%emt 0:00:22]} 4. cxd5 {[%emt 0:00:04]} Nxd5 {[%emt 0:00:08]} 5. b3 {[%emt 0:05:43]} f6 {[%emt 0:01:02]} 6. Bg2 {[%emt 0:10:58]} e5 {[%emt 0:00:07]} 7. O-O {[%emt 0:00:07]} Nc6 {[%emt 0:00:05]} 8. Bb2 {[%emt 0:01:58]} Be6 {[%emt 0:00:23]} 9. Nc3 {[%emt 0:00:04]} Nc7 {[%emt 0:00:10]} 10. e3 {[%emt 0:03:43]} Qd3 {[%emt 0:04:20]} 11. Qe2 {[%emt 0:01:41]} Nb4 {[%emt 0:05:45]} 12. Ne1 {[%emt 0:03:31]} Qxe2 {[%emt 0:01:37]} 13. Nxe2 {[%emt 0:00:03]} O-O-O {[%emt 0:00:12]} 14. d4 {[%emt 0:05:41]} exd4 {[%emt 0:01:40]} 15. exd4 {[%emt 0:00:15]} c4 {[%emt 0:00:21]} 16. a3 {[%emt 0:18:34]} Nd3 {[%emt 0:15:22]} 17. Nxd3 {[%emt 0:04:42]} cxd3 {[%emt 0:00:29]} 18. Nf4 {[%emt 0:00:08]} Bxb3 {[%emt 0:00:11]} 19. Nxd3 {[%emt 0:00:22]} Bd5 {[%emt 0:08:40]} 20. Bh3+ {[%emt 0:06:13]} Be6 {[%emt 0:02:37]} 21. Bxe6+ {[%emt 0:00:06]} Nxe6 {[%emt 0:00:07]} 22. Rac1+ {[%emt 0:00:07]} Kb8 {[%emt 0:00:27]} 23. Rfe1 {[%emt 0:01:32]} Nc7 {[%emt 0:00:24]} 24. Rc3 {[%emt 0:09:06]} Bd6 {[%emt 0:12:04]} 25. Rb1 {[%emt 0:01:22]} Nd5 {[%emt 0:04:53]} 26. Rb3 {[%emt 0:00:08]} Rc8 {[%emt 0:01:15]} 27. a4 {[%emt 0:02:23]} Rc4 {[%emt 0:04:49]} 28. a5 {[%emt 0:09:46]} Rhc8 {[%emt 0:05:43]} 29. Nc5 {[%emt 0:03:16]} Bxc5 {[%emt 0:00:39]} 30. dxc5 {[%emt 0:00:03]} Rb4 {[%emt 0:00:44]} 31. Rxb4 {[%emt 0:01:30]} Nxb4 {[%emt 0:00:08]} 32. Bxf6 {[%emt 0:00:06]} gxf6 {[%emt 0:01:00]} 33. Rxb4 {[%emt 0:00:04]} Rxc5 {[%emt 0:00:13]} 34. Ra4 {[%emt 0:03:56]} Kc7 {[%emt 0:01:31]} 35. g4 {[%emt 0:00:04]} b5 {[%emt 0:03:19]} 36. axb6+ {[%emt 0:00:05]} Kxb6 {[%emt 0:00:06]} 37. Kg2 {[%emt 0:02:27]} a5 {[%emt 0:00:51]} 38. Ra1 {[%emt 0:02:23]} Kb5 {[%emt 0:01:56]} 39. Rb1+ {[%emt 0:00:30]} Kc4 {[%emt 0:00:07]} 40. Rb6 {[%emt 0:01:25]} a4 {[%emt 0:02:17]} 41. Rxf6 {[%emt 0:00:10]} a3 {[%emt 0:00:23]} 42. h4 {[%emt 0:01:30]} Kb4 {[%emt 0:02:27]} 43. Re6 {[%emt 0:00:58]} a2 {[%emt 0:05:13]} 44. Re1 {[%emt 0:00:06]} Kb3 {[%emt 0:01:39]} 45. g5 {[%emt 0:03:14]} Kb2 {[%emt 0:00:55]} 46. Kg3 {[%emt 0:00:30]} a1=Q {[%emt 0:01:30]} 47. Rxa1 {[%emt 0:00:04]} Kxa1 {[%emt 0:00:08]} 48. f4 {[%emt 0:00:14]} Kb2 {[%emt 0:00:19]} 49. Kg4 {[%emt 0:02:15]} Kc3 {[%emt 0:02:23]} 50. h5 {[%emt 0:00:03]} Kd4 {[%emt 0:00:03]} 51. g6 {[%emt 0:00:10]} hxg6 {[%emt 0:00:05]} 52. hxg6 {[%emt 0:00:03]} Ke4 {[%emt 0:02:22]} 53. g7 {[%emt 0:00:31]} Rc1 {[%emt 0:00:27]} 54. Kg5 {[%emt 0:00:20]} Ra1 {[%emt 0:00:34]} 55. Kg6 {[%emt 0:00:48]} Kxf4 {[%emt 0:00:18]} 56. g8=Q {[%emt 0:00:05]} Rg1+ {[%emt 0:00:06]} 1/2-1/2

[Event "Bruges Masters 2019"]
[Site "Bruges"]
[Date "2019.08.11"]
[Round "2.6"]
[White "Du, Chunhui"]
[Black "Wilschut, Peter"]
[Result "1/2-1/2"]
[ECO "C01"]
[WhiteElo "2137"]
[BlackElo "2279"]
[Annotator "NA"]
[PlyCount "89"]
[EventDate "2019.08.11"]
[EventType "swiss"]
[EventCountry "BEL"]
[SourceTitle "playchess.com"]
[Source "ChessBase"]
[SourceQuality "1"]
[TimeControl "5400+30"]

1. e4 {[%emt 0:00:00]} e6 {[%emt 0:01:07]} 2. d4 {[%emt 0:00:00]} d5 {[%emt 0:00:06]} 3. exd5 {[%emt 0:00:10]} exd5 {[%emt 0:00:07]} 4. Bd3 {[%emt 0:00:12]} Nc6 {[%emt 0:00:19]} 5. Nf3 {[%emt 0:00:11]} Bg4 {[%emt 0:01:31]} 6. c3 {[%emt 0:00:09]} Bd6 {[%emt 0:00:22]} 7. O-O {[%emt 0:00:18]} Nge7 {[%emt 0:00:27]} 8. b4 {[%emt 0:00:22]} Qd7 {[%emt 0:05:50]} 9. Nbd2 {[%emt 0:00:16]} O-O {[%emt 0:01:26]} 10. Qc2 {[%emt 0:08:42]} Bf5 {[%emt 0:00:48]} 11. Nb3 {[%emt 0:00:22]} Bxd3 {[%emt 0:04:12]} 12. Qxd3 {[%emt 0:00:02]} Ng6 {[%emt 0:07:50]} 13. a4 {[%emt 0:04:54]} Rfe8 {[%emt 0:07:27]} 14. Bd2 {[%emt 0:04:18]} Nce7 {[%emt 0:09:18]} 15. Rfe1 {[%emt 0:02:09]} Qf5 {[%emt 0:04:24]} 16. Qxf5 {[%emt 0:08:53]} Nxf5 {[%emt 0:00:05]} 17. Na5 {[%emt 0:02:50]} Rxe1+ {[%emt 0:05:32]} 18. Rxe1 {[%emt 0:00:26]} b6 {[%emt 0:03:03]} 19. Nc6 {[%emt 0:01:25]} f6 {[%emt 0:01:11]} 20. g3 {[%emt 0:00:33]} a6 {[%emt 0:01:25]} 21. Kf1 {[%emt 0:03:22]} Kf7 {[%emt 0:06:06]} 22. Re2 {[%emt 0:01:18]} Bf8 {[%emt 0:02:24]} 23. g4 {[%emt 0:01:30]} Nd6 {[%emt 0:01:22]} 24. h4 {[%emt 0:00:06]} Nc4 {[%emt 0:03:35]} 25. h5 {[%emt 0:03:51]} Ne7 {[%emt 0:02:38]} 26. Nxe7 {[%emt 0:00:57]} Bxe7 {[%emt 0:00:04]} 27. Be1 {[%emt 0:16:28]} a5 {[%emt 0:00:39]} 28. Ra2 {[%emt 0:03:44]} Bd6 {[%emt 0:01:18]} 29. Nd2 {[%emt 0:01:08]} Ke6 {[%emt 0:04:33]} 30. Ke2 {[%emt 0:02:29]} f5 {[%emt 0:01:04]} 31. f3 {[%emt 0:02:16]} Bf4 {[%emt 0:03:11]} 32. Nb3 {[%emt 0:03:19]} Kf7 {[%emt 0:04:48]} 33. Kd3 {[%emt 0:01:36]} c6 {[%emt 0:01:52]} 34. Bh4 {[%emt 0:05:12]} axb4 {[%emt 0:04:45]} 35. a5 {[%emt 0:11:34]} bxc3 {[%emt 0:03:45]} 36. a6 {[%emt 0:00:26]} c2 {[%emt 0:06:22]} 37. Kxc2 {[%emt 0:00:45]} Na5 {[%emt 0:00:36]} 38. Nxa5 {[%emt 0:00:51]} Rxa6 {[%emt 0:00:07]} 39. Rb2 {[%emt 0:00:06]} bxa5 {[%emt 0:01:26]} 40. Rb7+ {[%emt 0:00:00]} Kf8 {[%emt 0:01:05]} 41. gxf5 {[%emt 0:00:22]} a4 {[%emt 0:00:40]} 42. Kb1 {[%emt 0:02:08]} Bd6 {[%emt 0:01:06]} 43. Rd7 {[%emt 0:00:52]} c5 {[%emt 0:00:48]} 44. f6 {[%emt 0:11:28]} gxf6 {[%emt 0:01:16]} 45. Rxh7 {[%emt 0:00:30]} 1/2-1/2

[Event "Bruges Masters 2019"]
[Site "Bruges"]
[Date "2019.08.11"]
[Round "2.7"]
[White "Pel, Bonno"]
[Black "Barzeele, Raf"]
[Result "1-0"]
[ECO "A08"]
[WhiteElo "2255"]
[BlackElo "1940"]
[Annotator "NA"]
[PlyCount "147"]
[EventDate "2019.08.11"]
[EventType "swiss"]
[EventCountry "BEL"]
[SourceTitle "playchess.com"]
[Source "ChessBase"]
[SourceQuality "1"]
[TimeControl "5400+30"]

1. g3 {[%emt 0:00:00]} g6 {[%emt 0:00:00]} 2. Bg2 {[%emt 0:00:00]} Bg7 {[%emt 0:00:00]} 3. e4 {[%emt 0:01:28]} c5 {[%emt 0:00:46]} 4. Nf3 {[%emt 0:00:54]} Nc6 {[%emt 0:00:17]} 5. O-O {[%emt 0:02:07]} Nf6 {[%emt 0:02:15]} 6. d3 {[%emt 0:02:43]} O-O {[%emt 0:04:26]} 7. c3 {[%emt 0:01:20]} d5 {[%emt 0:04:54]} 8. Nbd2 {[%emt 0:04:02]} b6 {[%emt 0:15:01]} 9. Qa4 {[%emt 0:09:57]} Bd7 {[%emt 0:06:24]} 10. Qc2 {[%emt 0:04:56]} dxe4 {[%emt 0:08:15]} 11. dxe4 {[%emt 0:00:24]} e5 {[%emt 0:01:51]} 12. Nc4 {[%emt 0:03:15]} Qc7 {[%emt 0:01:00]} 13. Ne3 {[%emt 0:11:40]} Be6 {[%emt 0:16:04]} 14. Ng5 {[%emt 0:03:27]} Rad8 {[%emt 0:09:23]} 15. Nxe6 {[%emt 0:01:58]} fxe6 {[%emt 0:00:04]} 16. Bh3 {[%emt 0:00:21]} Rfe8 {[%emt 0:04:16]} 17. b3 {[%emt 0:06:32]} Qe7 {[%emt 0:05:47]} 18. Bb2 {[%emt 0:02:38]} Rd7 {[%emt 0:00:27]} 19. Rad1 {[%emt 0:00:34]} Rxd1 {[%emt 0:01:27]} 20. Rxd1 {[%emt 0:00:13]} Rd8 {[%emt 0:00:13]} 21. Rxd8+ {[%emt 0:03:54]} Nxd8 {[%emt 0:00:19]} 22. Qd3 {[%emt 0:03:34]} Nf7 {[%emt 0:02:25]} 23. Nc4 {[%emt 0:02:48]} Ng5 {[%emt 0:03:51]} 24. Bg2 {[%emt 0:00:23]} Nf7 {[%emt 0:02:35]} 25. a4 {[%emt 0:03:02]} Qd7 {[%emt 0:03:35]} 26. Qxd7 {[%emt 0:04:19]} Nxd7 {[%emt 0:00:03]} 27. f3 {[%emt 0:00:07]} Kf8 {[%emt 0:00:59]} 28. Kf2 {[%emt 0:00:07]} Ke7 {[%emt 0:00:13]} 29. Bf1 {[%emt 0:01:57]} Bh6 {[%emt 0:00:33]} 30. Ba3 {[%emt 0:03:36]} Nd6 {[%emt 0:00:34]} 31. Ne3 {[%emt 0:00:38]} a5 {[%emt 0:01:57]} 32. Ng4 {[%emt 0:02:52]} Bg7 {[%emt 0:00:16]} 33. Bc1 {[%emt 0:00:06]} Nf7 {[%emt 0:00:38]} 34. Bb5 {[%emt 0:00:50]} Kd6 {[%emt 0:00:35]} 35. Ke2 {[%emt 0:01:54]} Ke7 {[%emt 0:01:08]} 36. Kd3 {[%emt 0:01:26]} h5 {[%emt 0:01:30]} 37. Nf2 {[%emt 0:03:54]} Bf6 {[%emt 0:00:16]} 38. h4 {[%emt 0:01:15]} Nd6 {[%emt 0:00:09]} 39. Nd1 {[%emt 0:02:27]} Nxb5 {[%emt 0:00:56]} 40. axb5 {[%emt 0:00:06]} Kd6 {[%emt 0:00:49]} 41. Bh6 {[%emt 0:00:37]} Ke7 {[%emt 0:01:03]} 42. Nb2 {[%emt 0:01:05]} Kf7 {[%emt 0:01:57]} 43. Kc4 {[%emt 0:00:20]} Be7 {[%emt 0:00:37]} 44. Na4 {[%emt 0:01:02]} Bd6 {[%emt 0:00:22]} 45. Be3 {[%emt 0:02:23]} Bc7 {[%emt 0:00:49]} 46. Bg5 {[%emt 0:00:36]} Ke8 {[%emt 0:00:17]} 47. Kd3 {[%emt 0:01:26]} Kf7 {[%emt 0:00:15]} 48. Nb2 {[%emt 0:00:10]} Ke8 {[%emt 0:00:37]} 49. Nc4 {[%emt 0:00:08]} Kf7 {[%emt 0:00:11]} 50. Ke3 {[%emt 0:00:48]} Ke8 {[%emt 0:00:12]} 51. Ke2 {[%emt 0:00:40]} Kf7 {[%emt 0:00:05]} 52. g4 {[%emt 0:00:33]} Ke8 {[%emt 0:00:08]} 53. Nd2 {[%emt 0:00:31]} Kf7 {[%emt 0:00:12]} 54. Nf1 {[%emt 0:00:43]} Nf8 {[%emt 0:00:16]} 55. Ng3 {[%emt 0:01:56]} Nh7 {[%emt 0:01:00]} 56. Be3 {[%emt 0:02:54]} Bd8 {[%emt 0:00:12]} 57. gxh5 {[%emt 0:00:40]} Bxh4 {[%emt 0:01:11]} 58. hxg6+ {[%emt 0:00:05]} Kxg6 {[%emt 0:00:04]} 59. Nf1 {[%emt 0:00:06]} Bd8 {[%emt 0:00:40]} 60. Nd2 {[%emt 0:00:16]} Nf6 {[%emt 0:00:20]} 61. Nc4 {[%emt 0:00:08]} Bc7 {[%emt 0:00:45]} 62. Kf2 {[%emt 0:01:21]} Nh5 {[%emt 0:01:10]} 63. Kg2 {[%emt 0:02:55]} Nf4+ {[%emt 0:02:11]} 64. Bxf4 exf4 {[%emt 0:00:01]} 65. Kh2 {[%emt 0:01:44]} Kh5 {[%emt 0:01:08]} 66. Kh3 {[%emt 0:00:30]} Kg5 {[%emt 0:00:01]} 67. Nb2 {[%emt 0:00:59]} Be5 {[%emt 0:00:17]} 68. Na4 {[%emt 0:00:12]} Bc7 {[%emt 0:00:02]} 69. Kg2 {[%emt 0:00:37]} Kh4 {[%emt 0:00:16]} 70. Nb2 {[%emt 0:00:08]} Be5 {[%emt 0:01:46]} 71. Nc4 {[%emt 0:00:41]} Bc7 {[%emt 0:00:02]} 72. Kf2 {[%emt 0:00:17]} Kg5 {[%emt 0:00:15]} 73. Ke2 {[%emt 0:00:15]} Kf6 {[%emt 0:00:13]} 74. Kd3 {[%emt 0:00:11]} 1-0

[Event "Bruges Masters 2019"]
[Site "Bruges"]
[Date "2019.08.11"]
[Round "2.8"]
[White "Butzen, Robin"]
[Black "Citak, Selim"]
[Result "1/2-1/2"]
[ECO "D84"]
[WhiteElo "1967"]
[BlackElo "2253"]
[Annotator "NA"]
[PlyCount "44"]
[EventDate "2019.08.11"]
[EventType "swiss"]
[EventCountry "BEL"]
[SourceTitle "playchess.com"]
[Source "ChessBase"]
[SourceQuality "1"]
[TimeControl "5400+30"]

1. d4 {[%emt 0:03:26]} Nf6 {[%emt 0:00:00]} 2. c4 {[%emt 0:00:04]} g6 {[%emt 0:00:29]} 3. Nc3 {[%emt 0:00:06]} d5 {[%emt 0:00:23]} 4. Bf4 {[%emt 0:00:07]} Bg7 {[%emt 0:00:51]} 5. e3 {[%emt 0:00:13]} O-O {[%emt 0:00:26]} 6. cxd5 {[%emt 0:00:04]} Nxd5 {[%emt 0:00:38]} 7. Nxd5 {[%emt 0:00:06]} Qxd5 {[%emt 0:00:05]} 8. Bxc7 {[%emt 0:00:05]} Na6 {[%emt 0:01:09]} 9. Bxa6 {[%emt 0:00:04]} Qxg2 {[%emt 0:00:35]} 10. Qf3 {[%emt 0:00:03]} Qxf3 {[%emt 0:00:07]} 11. Nxf3 {[%emt 0:00:05]} bxa6 {[%emt 0:00:03]} 12. Rc1 {[%emt 0:18:35]} f6 {[%emt 0:00:48]} 13. Rc5 {[%emt 0:14:10]} e6 {[%emt 0:12:34]} 14. Kd2 {[%emt 0:14:21]} Bb7 {[%emt 0:01:46]} 15. Ke2 {[%emt 0:00:05]} Rf7 {[%emt 0:01:21]} 16. Ba5 {[%emt 0:14:50]} Bf8 {[%emt 0:02:19]} 17. Rc3 {[%emt 0:00:04]} Bd6 {[%emt 0:02:45]} 18. Rhc1 {[%emt 0:03:31]} Bd5 {[%emt 0:04:46]} 19. b3 {[%emt 0:06:24]} g5 {[%emt 0:01:51]} 20. h3 {[%emt 0:03:15]} Kg7 {[%emt 0:11:33]} 21. Nd2 {[%emt 0:01:16]} Bb7 {[%emt 0:00:53]} 22. f3 {[%emt 0:03:35]} Re8 {[%emt 0:11:17]} 1/2-1/2